fUST/lending_fUST_20260316
["ID","MTS","AMOUNT","RATE_DAILY","PERIOD"]
[408431714,1773606639113,-500.0,7.979e-05,2]
[408431715,1773606639124,-500.0,7.979e-05,2]
[408431716,1773606639135,-500.0,7.979e-05,2]
[408431717,1773606639146,-500.0,7.979e-05,2]
[408431718,1773606639157,-500.0,7.979e-05,2]
[408431719,1773606639168,-500.0,7.979e-05,2]
[408431720,1773606639178,-500.0,7.979e-05,2]
[408431721,1773606639189,-500.0,7.979e-05,2]
[408431722,1773606639204,-500.0,7.979e-05,2]
[408431723,1773606639215,-500.0,7.979e-05,2]
[408431724,1773606639226,-500.0,7.979e-05,2]
[408431725,1773606639239,-500.0,7.979e-05,2]
[408431726,1773606639250,-500.0,7.979e-05,2]
[408431727,1773606639261,-500.0,7.979e-05,2]
[408431728,1773606639272,-500.0,7.979e-05,2]
[408431729,1773606639283,-500.0,7.979e-05,2]
[408431730,1773606639294,-500.0,7.979e-05,2]
[408431731,1773606639304,-500.0,7.979e-05,2]
[408431732,1773606639316,-576.30405503,7.979e-05,2]
[408431733,1773606639330,-500.0,7.979e-05,2]
[408431734,1773606639756,-500.0,7.979e-05,2]
[408431735,1773606639786,-500.0,7.979e-05,2]
[408431736,1773606639803,-500.0,7.979e-05,2]
[408431737,1773606639817,-500.0,7.979e-05,2]
[408431738,1773606639826,-500.0,7.979e-05,2]
[408431739,1773606639836,-500.0,7.979e-05,2]
[408431740,1773606639846,-500.0,7.979e-05,2]
[408431741,1773606639857,-500.0,7.979e-05,2]
[408431742,1773606639867,-34880.71929044,7.981e-05,2]
[408431743,1773606639876,-500.0,7.983e-05,2]
[408431744,1773606639885,-500.0,7.983e-05,2]
[408431745,1773606639894,-500.0,8.06e-05,2]
[408431746,1773606639903,-172.604,8.063e-05,2]
[408431747,1773606639913,-221.6802445,8.195e-05,2]
[408431748,1773606639922,-1347.130937,8.337e-05,2]
[408431749,1773606639931,-600.0,8.465e-05,2]
[408431750,1773606639940,-1000.0,8.53e-05,2]
[408431751,1773606639952,-1000.0,8.53e-05,2]
[408431752,1773606639961,-1000.0,8.608e-05,2]
[408431753,1773606639971,-13667.25034214,8.608e-05,2]
[408431754,1773606639981,-151.0,8.608e-05,2]
[408431755,1773606639990,-1347.130937,8.661e-05,2]
[408431756,1773606639999,-300.0,8.689e-05,2]
[408431758,1773606640008,-1347.130937,8.984e-05,2]
[408431760,1773606640017,-1500.0,9.078e-05,2]
[408431762,1773606640027,-1500.0,9.156e-05,2]
[408431764,1773606640036,-1347.130937,9.308e-05,2]
[408431766,1773606640045,-720.0,9.312e-05,2]
[408431767,1773606640054,-249.61863933,9.337e-05,2]
[408431768,1773606640063,-997.47608276,9.337e-05,2]
[408431769,1773606640073,-154.995606,9.589e-05,2]
[408431770,1773606640082,-2000.0,9.626e-05,2]
[408431771,1773606640092,-242.99344664,9.704e-05,2]
[408431772,1773606640101,-397.48928724,9.828e-05,2]
[408431773,1773606640110,-624.15074818,0.0001,2]
[408431774,1773606640120,-151.0,0.0001,2]
[408431775,1773606640129,-1500.0,0.00010174,2]
[408431776,1773606640138,-864.0,0.00010243,2]
[408431777,1773606640147,-209.457,0.00010361,2]
[408431778,1773606640157,-185.01959146,0.00010698,2]
[408431779,1773606640167,-235.30045122,0.00010959,2]
[408431781,1773606640176,-500.126,0.00011222,2]
[408431783,1773606640185,-1000.0,0.00011268,2]
[408431785,1773606640195,-166.0,0.00011453,2]
[408431786,1773606640204,-202.27307384,0.00011524,2]
[408431787,1773606640214,-14896.09128234,0.00012129,2]
[408431788,1773606640223,-151.0,0.00012129,2]
[408431789,1773606640233,-10000.0,0.00012164,2]
[408431790,1773606640242,-485.17,0.00012329,2]
[408431791,1773606640251,-404.31,0.00012329,2]
[408431792,1773606640260,-336.92,0.00012329,2]
[408431793,1773606640269,-280.77,0.00012329,2]
[408431794,1773606640278,-233.98,0.00012329,2]
[408431795,1773606640288,-194.98,0.00012329,2]
[408431796,1773606640297,-162.48,0.00012329,2]
[408431797,1773606640309,-812.44,0.00012329,2]
[408431798,1773606640319,-1000.0,0.00012394,2]
[408431799,1773606640330,-244.0,0.00012394,2]
[408431800,1773606640340,-214.881172,0.00012678,2]
[408431801,1773606640350,-1289.36618414,0.000129,2]
[408431802,1773606640361,-1289.36618414,0.000129,2]
[408431803,1773606640370,-1289.36618414,0.00013427,2]
[408431804,1773606640379,-160.0,0.00013612,3]
[408431805,1773606640390,-1000.0,0.00013634,2]
[408431807,1773606640400,-492.0,0.00013634,2]
[408431808,1773606640410,-1500.0,0.00013697,2]
[408431809,1773606640419,-1500.0,0.00013697,2]
[408431810,1773606640428,-1500.0,0.00013697,2]
[408431811,1773606640438,-1500.0,0.00013697,2]
[408431812,1773606640449,-1500.0,0.00013697,2]
[408431815,1773606640458,-1500.0,0.00013697,2]
[408431817,1773606640467,-1500.0,0.00013697,2]
[408431819,1773606640476,-1500.0,0.00013697,2]
[408431820,1773606640486,-1500.0,0.00013697,2]
[408431821,1773606640495,-1500.0,0.00013697,2]
[408431822,1773606640504,-1500.0,0.00013697,2]
[408431823,1773606640514,-1500.0,0.00013697,2]
[408431824,1773606640523,-162.2401007,0.00013697,2]
[408431826,1773606640532,-500.0,0.00013698,2]
[408431827,1773606640542,-500.0,0.00013698,2]
[408431828,1773606640553,-500.0,0.00013698,2]
[408431830,1773606640563,-500.0,0.00013698,2]
[408431831,1773606640572,-531.12,0.00013698,2]
[408431832,1773606640581,-2340.38,0.00013698,2]
[408431833,1773606640591,-2340.38,0.00013698,2]
[408431834,1773606640600,-2340.38,0.00013698,2]
[408431835,1773606640608,-2340.38,0.00013698,2]
[408431836,1773606640618,-2340.38,0.00013698,2]
[408431837,1773606640627,-2340.38,0.00013698,2]
[408431838,1773606640637,-2340.38,0.00013698,2]
[408431839,1773606640646,-2340.38,0.00013698,2]
[408431840,1773606640655,-2340.38,0.00013698,2]
[408431841,1773606640665,-2340.38,0.00013698,2]
[408431842,1773606640675,-2340.38,0.00013698,2]
[408431843,1773606640684,-2340.38,0.00013698,2]
[408431844,1773606640695,-500.0,0.00013698,2]
[408431845,1773606640705,-500.0,0.00013698,2]
[408431846,1773606640714,-500.0,0.00013698,2]
[408431847,1773606640724,-500.0,0.00013698,2]
[408431848,1773606640734,-500.0,0.00013698,2]
[408431849,1773606640743,-500.0,0.00013698,2]
[408431850,1773606640753,-500.0,0.00013698,2]
[408431851,1773606640764,-500.0,0.00013698,2]
[408431852,1773606640774,-500.0,0.00013698,2]
[408431853,1773606640783,-500.0,0.00013698,2]
[408431854,1773606640792,-500.0,0.00013698,2]
[408431855,1773606640801,-500.0,0.00013698,2]
[408431856,1773606640810,-500.0,0.00013698,2]
[408431857,1773606640820,-291.88,0.00013698,2]
[408431859,1773606640830,-1996.546847,0.00013699,2]
[408431860,1773606640839,-11548.5401852,0.00013699,2]
[408431861,1773606640849,-151.0,0.00013699,2]
[408431862,1773606640858,-151.0,0.00013699,2]
[408431863,1773606640867,-151.0,0.00013699,2]
[408431864,1773606640876,-151.0,0.00013699,2]
[408431865,1773606640886,-151.0,0.00013699,2]
[408431866,1773606640896,-151.0,0.00013699,2]
[408431867,1773606640905,-151.0,0.00013699,2]
[408431868,1773606640915,-151.0,0.00013699,2]
[408431869,1773606640924,-151.0,0.00013699,2]
[408431870,1773606640934,-151.0,0.00013699,2]
[408431871,1773606640944,-151.0,0.00013699,2]
[408431872,1773606640953,-151.0,0.00013699,2]
[408431873,1773606640963,-151.0,0.00013699,2]
[408431874,1773606640972,-176.500513,0.00013699,2]
[408431875,1773606640982,-2971.1600425,0.00013699,2]
[408431876,1773606640992,-975.099008,0.00013699,2]
[408431877,1773606641003,-975.099008,0.00013699,2]
[408431878,1773606641013,-975.099008,0.00013699,2]
[408431879,1773606641023,-975.099008,0.00013699,2]
[408431880,1773606641032,-975.099008,0.00013699,2]
[408431881,1773606641041,-975.099008,0.00013699,2]
[408431882,1773606641051,-975.099008,0.00013699,2]
[408431884,1773606641060,-975.099008,0.00013699,2]
[408431885,1773606641069,-975.099008,0.00013699,2]
[408431886,1773606641079,-975.099008,0.00013699,2]
[408431887,1773606641088,-975.099008,0.00013699,2]
[408431888,1773606641098,-975.099008,0.00013699,2]
[408431889,1773606641107,-975.099008,0.00013699,2]
[408431890,1773606641116,-975.099008,0.00013699,2]
[408431891,1773606641125,-975.099008,0.00013699,2]
[408431892,1773606641135,-975.099008,0.00013699,2]
[408431893,1773606641144,-975.099008,0.00013699,2]
[408431894,1773606641153,-975.099008,0.00013699,2]
[408431895,1773606641162,-975.099008,0.00013699,2]
[408431896,1773606641171,-975.099013,0.00013699,2]
[408431897,1773606641180,-1000.0,0.00013699,2]
[408431898,1773606641189,-154.53302968,0.00013699,2]
[408431899,1773606641200,-184.95017515,0.00013699,2]
[408431900,1773606641210,-500.0,0.00013699,2]
[408431901,1773606641219,-500.0,0.00013699,2]
[408431902,1773606641228,-500.0,0.00013699,2]
[408431903,1773606641238,-563.24803056,0.00013699,2]
[408431904,1773606641247,-500.0,0.00013699,2]
[408431905,1773606641256,-500.0,0.00013699,2]
[408431906,1773606641265,-500.0,0.00013699,2]
[408431907,1773606641274,-500.0,0.00013699,2]
[408431908,1773606641284,-500.0,0.00013699,2]
[408431909,1773606641293,-400.44043134,0.00013699,2]
[408431910,1773606641303,-1000.0,0.00013699,2]
[408431911,1773606641316,-1500.0,0.00013699,2]
[408431912,1773606641328,-1500.0,0.00013699,2]
[408431913,1773606641337,-1500.0,0.00013699,2]
[408431914,1773606641346,-194.99138939,0.000138,2]
[408431915,1773606641355,-151.0,0.000139,2]
[408431916,1773606641365,-500.0,0.00013973,2]
[408431917,1773606641374,-500.0,0.00013973,2]
[408431918,1773606641383,-100000.0,0.0001399,2]
[408431919,1773606641395,-1000.0,0.00014247,2]
[408431920,1773606641405,-1000.0,0.00014247,2]
[408431921,1773606641415,-1000.0,0.00014247,2]
[408431922,1773606641425,-1000.0,0.00014247,2]
[408431923,1773606641435,-417.96506394,0.00014247,2]
[408431924,1773606641447,-1000.0,0.00014247,2]
[408431925,1773606641457,-1000.0,0.00014247,2]
[408431926,1773606641467,-1000.0,0.00014247,2]
[408431927,1773606641477,-160.0,0.00014275,4]
[408431928,1773606641487,-500.0,0.00014344,2]
[408431929,1773606641497,-181.08010149,0.00014344,2]
[408431930,1773606641507,-151.0,0.00014344,2]
[408431931,1773606641518,-500.0,0.00014344,2]
[408431932,1773606641528,-500.0,0.00014344,2]
[408431933,1773606641537,-500.0,0.00014344,2]
[408431934,1773606641546,-500.0,0.00014344,2]
[408431935,1773606641556,-209.40437684,0.00014344,2]
[408431936,1773606641565,-500.0,0.00014344,2]
[408431937,1773606641574,-500.0,0.00014344,2]
[408431938,1773606641584,-500.0,0.00014344,2]
[408431939,1773606641593,-500.0,0.00014344,2]
[408431940,1773606641602,-500.0,0.00014344,2]
[408431941,1773606641612,-500.0,0.00014344,2]
[408431942,1773606641621,-500.0,0.00014344,2]
[408431943,1773606641631,-500.0,0.00014344,2]
[408431944,1773606641640,-500.0,0.00014344,2]
[408431945,1773606641650,-500.0,0.00014344,2]
[408431946,1773606641660,-167.44052948,0.00014344,2]
[408431947,1773606641669,-2150.738,0.00014344,2]
[408431948,1773606641690,-537.6845,0.00014344,2]
[408431949,1773606641702,-185.01959147,0.00014352,2]
[408431950,1773606641712,-151.0,0.000144,2]
[408431951,1773606641722,-5000.0,0.00014504,2]
[408431952,1773606641732,-10000.0,0.00014504,2]
[408431953,1773606641742,-1018.68901106,0.00014521,2]
[408431954,1773606641752,-1000.0,0.00014521,2]
[408431955,1773606641762,-303.62,0.00014594,7]
[408431956,1773606641772,-5000.0,0.00014649,2]
[408431957,1773606641782,-568.66535809,0.00014795,2]
[408431958,1773606641792,-500.62957938,0.00014795,2]
[408431959,1773606641802,-501.11378651,0.00014795,2]
[408431960,1773606641812,-1500.0,0.00014795,2]
[408431961,1773606641823,-501.73215302,0.00014795,2]
[408431962,1773606641833,-502.25507613,0.00014795,2]
[408431963,1773606641843,-1500.0,0.00014795,2]
[408431964,1773606641853,-501.12764287,0.000148,2]
[408431965,1773606641862,-2230.315306,0.00014892,2]
[408431966,1773606641872,-155.7074763,0.00014892,2]
[408431967,1773606641883,-151.0,0.000149,2]
[408431968,1773606641892,-189.91144587,0.00014932,30]
[408431969,1773606641902,-160.0,0.00014938,5]
[408431970,1773606641913,-2340.38,0.00014989,2]
[408431971,1773606641923,-1000.0,0.00014997,2]
[408431972,1773606641933,-791.0,0.00014997,2]
[408431973,1773606641944,-2340.38,0.00014999,2]
[408431974,1773606641954,-2340.38,0.00014999,2]
[408431975,1773606641963,-83633.23829949,0.00015,2]
[408431977,1773606641973,-3526.09428547,0.00015,4]
[408431978,1773606641983,-2995.0,0.00015,2]
[408431979,1773606641993,-833.0,0.00015,2]
[408431980,1773606642003,-12367.0,0.00015,2]
[408431981,1773606642012,-807.33127745,0.00015,2]
[408431982,1773606642022,-270.83333333,0.00015,2]
[408431983,1773606642032,-500.0,0.00015,2]
[408431984,1773606642042,-500.0,0.00015,2]
[408431985,1773606642052,-500.0,0.00015,2]
[408431986,1773606642061,-500.0,0.00015,2]
[408431987,1773606642071,-969.70694024,0.00015,2]
[408431988,1773606642081,-591.64879885,0.00015,2]
[408431989,1773606642090,-500.0,0.00015,2]
[408431990,1773606642099,-953.17657253,0.00015,2]
[408431991,1773606642109,-201.943128,0.00015035,7]
[408431992,1773606642118,-423.045125,0.00015035,7]
[408431993,1773606642128,-193.833257,0.00015035,7]
[408431994,1773606642137,-160.0,0.00015035,7]
[408431995,1773606642147,-213.341771,0.00015035,7]
[408431996,1773606642156,-266.683542,0.00015035,7]
[408431997,1773606642165,-320.025314,0.00015035,7]
[408431998,1773606642175,-373.367085,0.00015035,7]
[408431999,1773606642189,-426.708857,0.00015035,7]
[408432000,1773606642203,-480.050628,0.00015035,7]
[408432001,1773606642215,-533.3924,0.00015035,7]
[408432002,1773606642227,-586.734171,0.00015035,7]
[408432003,1773606642238,-640.075943,0.00015035,7]
[408432004,1773606642249,-355.988423,0.00015035,7]
[408432005,1773606642259,-179.505002,0.00015035,7]
[408432006,1773606642270,-355.988423,0.00015035,7]
[408432007,1773606642280,-160.0,0.00015035,7]
[408432008,1773606642290,-213.341771,0.00015035,7]
[408432009,1773606642302,-266.683542,0.00015035,7]
[408432010,1773606642317,-320.025314,0.00015035,7]
[408432011,1773606642328,-373.367085,0.00015035,7]
[408432012,1773606642338,-426.708857,0.00015035,7]
[408432013,1773606642351,-480.050628,0.00015035,7]
[408432014,1773606642363,-533.3924,0.00015035,7]
[408432015,1773606642374,-586.734171,0.00015035,7]
[408432016,1773606642384,-640.075943,0.00015035,7]
[408432017,1773606642396,-1500.0,0.00015068,2]
[408432018,1773606642406,-213.413219,0.00015068,2]
[408432019,1773606642418,-500.49,0.000151,2]
[408432020,1773606642429,-189.91144587,0.00015123,30]
[408432021,1773606642439,-38000.0,0.00015316,3]
[408432022,1773606642449,-38000.0,0.00015324,3]
[408432023,1773606642460,-1652.18,0.00015324,2]
[408432024,1773606642470,-1652.18,0.00015324,2]
[408432025,1773606642481,-1652.18,0.00015324,2]
[408432026,1773606642491,-1652.18,0.00015324,2]
[408432027,1773606642502,-1652.18,0.00015324,2]
[408432028,1773606642512,-1652.18,0.00015324,2]
[408432029,1773606642523,-1652.18,0.00015324,2]
[408432030,1773606642536,-1652.18,0.00015324,2]
[408432031,1773606642547,-1652.18,0.00015324,2]
[408432032,1773606642557,-1652.18,0.00015324,2]
[408432033,1773606642567,-1652.18,0.00015324,2]
[408432034,1773606642577,-1652.18,0.00015324,2]
[408432035,1773606642587,-1652.18,0.00015324,2]
[408432036,1773606642597,-1652.18,0.00015324,2]
[408432037,1773606642608,-1652.18,0.00015324,2]
[408432038,1773606642618,-1652.18,0.00015324,2]
[408432039,1773606642629,-1652.18,0.00015324,2]
[408432040,1773606642639,-1652.18,0.00015324,2]
[408432041,1773606642649,-1652.18,0.00015324,2]
[408432042,1773606642659,-1652.18,0.00015324,2]
[408432043,1773606642670,-1652.18,0.00015324,2]
[408432044,1773606642680,-1652.18,0.00015324,2]
[408432045,1773606642691,-1652.18,0.00015324,2]
[408432046,1773606642702,-1652.18,0.00015324,2]
[408432047,1773606642712,-1652.18,0.00015324,2]
[408432048,1773606642724,-1652.18,0.00015324,2]
[408432049,1773606642734,-1652.18,0.00015324,2]
[408432050,1773606642744,-1652.18,0.00015324,2]
[408432051,1773606642754,-1652.18,0.00015324,2]
[408432052,1773606642764,-1652.18,0.00015324,2]
[408432053,1773606642774,-1652.18,0.00015324,2]
[408432054,1773606642785,-2875.16,0.00015324,2]
[408432055,1773606642795,-38000.0,0.00015333,3]
[408432056,1773606642804,-38000.0,0.00015333,3]
[408432057,1773606642814,-38000.0,0.00015342,3]
[408432058,1773606642824,-38000.0,0.00015342,3]
[408432059,1773606642834,-38000.0,0.00015342,3]
[408432060,1773606642844,-38000.0,0.00015342,3]
[408432061,1773606642854,-38000.0,0.00015342,3]
[408432062,1773606642864,-2000.0,0.00015342,2]
[408432063,1773606642876,-1035.2425874,0.00015342,2]
[408432064,1773606642887,-2340.38,0.00015346,2]
[408432065,1773606642897,-2340.38,0.00015346,2]
[408432066,1773606642907,-2340.38,0.00015355,2]
[408432067,1773606642917,-2340.38,0.00015355,2]
[408432068,1773606642926,-2340.38,0.00015364,2]
[408432069,1773606642936,-2340.38,0.00015364,2]
[408432070,1773606642946,-2340.38,0.00015364,2]
[408432071,1773606642955,-2340.38,0.00015364,2]
[408432072,1773606642965,-2340.59,0.00015364,2]
[408432073,1773606642975,-202.73676709,0.00015373,2]
[408432074,1773606642984,-11864.11924404,0.00015381,3]
[408432075,1773606642994,-151.0,0.000154,2]
[408432076,1773606643004,-2312.83697232,0.0001544,2]
[408432077,1773606643015,-1472.03100897,0.00015491,2]
[408432078,1773606643025,-160.0,0.00015601,6]
[408432079,1773606643034,-2000.0,0.00015616,2]
[408432080,1773606643044,-5000.0,0.0001564,2]
[408432081,1773606643054,-19811.45504312,0.00015651,2]
[408432082,1773606643064,-182.40813126,0.00015651,2]
[408432083,1773606643074,-1436.90541619,0.00015747,10]
[408432084,1773606643083,-83684.14415017,0.00015747,2]
[408432085,1773606643093,-17948.85979064,0.00015807,2]
[408432086,1773606643103,-279.44487623,0.00015838,30]
[408432087,1773606643112,-228.13472548,0.00015838,30]
[408432089,1773606643122,-171.44751872,0.00015847,30]
[408432090,1773606643131,-1223.47558137,0.00015861,30]
[408432092,1773606643141,-1330.02595666,0.00015878,30]
[408432094,1773606643150,-747.5,0.000159,2]
[408432095,1773606643159,-1257.78,0.00015906,2]
[408432096,1773606643169,-1257.78,0.00015906,2]
[408432097,1773606643178,-1257.78,0.00015906,2]
[408432098,1773606643188,-1257.78,0.00015906,2]
[408432099,1773606643199,-1257.78,0.00015906,2]
[408432100,1773606643208,-1257.78,0.00015906,2]
[408432101,1773606643217,-1257.78,0.00015906,2]
[408432102,1773606643227,-1257.78,0.00015906,2]
[408432103,1773606643236,-1257.78,0.00015906,2]
[408432104,1773606643246,-1072.97,0.00015906,2]
[408432105,1773606643255,-1257.78,0.00015906,2]
[408432106,1773606643265,-1072.97,0.00015906,2]
[408432107,1773606643275,-1257.78,0.00015906,2]
[408432108,1773606643284,-1072.97,0.00015906,2]
[408432115,1773606643519,-1257.78,0.00015906,2]
[408432116,1773606643530,-1072.97,0.00015906,2]
[408432117,1773606643540,-1257.78,0.00015906,2]
[408432118,1773606643549,-1072.97,0.00015906,2]
[408432119,1773606643559,-1257.78,0.00015906,2]
[408432120,1773606643568,-1072.97,0.00015906,2]
[408432121,1773606643577,-1257.78,0.00015906,2]
[408432122,1773606643586,-1072.97,0.00015906,2]
[408432123,1773606643595,-1257.78,0.00015906,2]
[408432124,1773606643604,-1072.97,0.00015906,2]
[408432125,1773606643614,-1257.78,0.00015906,2]
[408432126,1773606643623,-1257.78,0.00015906,2]
[408432127,1773606643633,-1072.97,0.00015906,2]
[408432128,1773606643642,-1257.78,0.00015906,2]
[408432129,1773606643652,-1072.97,0.00015906,2]
[408432130,1773606643661,-1257.89531278,0.00015906,2]
[408432131,1773606643671,-1072.97,0.00015906,2]
[408432132,1773606643680,-1072.97,0.00015906,2]
[408432133,1773606643690,-1072.97,0.00015906,2]
[408432134,1773606643700,-1072.97,0.00015906,2]
[408432135,1773606643710,-1072.97,0.00015906,2]
[408432136,1773606643720,-1072.97,0.00015906,2]
[408432137,1773606643730,-1072.97,0.00015906,2]
[408432139,1773606643739,-1072.97,0.00015906,2]
[408432140,1773606643749,-1072.97,0.00015906,2]
[408432142,1773606643758,-1073.18877651,0.00015906,2]
[408432143,1773606643768,-2398.4119403,0.00015988,2]
[408432144,1773606643778,-2900.0,0.00016,2]
[408432145,1773606643787,-150.0,0.00016,30]
[408432146,1773606643796,-1000.0,0.00016,2]
[408432147,1773606643806,-1000.0,0.00016,5]
[408432148,1773606643815,-1000.0,0.00016,5]
[408432149,1773606643825,-1000.0,0.00016,5]
[408432150,1773606643834,-1000.0,0.00016,5]
[408432151,1773606643843,-1001.19,0.00016,2]
[408432152,1773606643853,-270.83333333,0.00016,3]
[408432153,1773606643862,-1000.0,0.00016003,2]
[408432154,1773606643872,-263.11369373,0.00016005,2]
[408432155,1773606643881,-500.0,0.00016005,2]
[408432156,1773606643890,-500.0,0.00016005,2]
[408432157,1773606643901,-500.0,0.00016005,2]
[408432158,1773606643910,-500.0,0.00016005,2]
[408432159,1773606643919,-500.0,0.00016006,2]
[408432160,1773606643929,-500.0,0.00016006,2]
[408432161,1773606643938,-500.0,0.00016006,2]
[408432162,1773606643948,-500.0,0.00016006,2]
[408432163,1773606643958,-500.0,0.00016006,2]
[408432164,1773606643967,-500.0,0.00016006,2]
[408432165,1773606643977,-500.0,0.00016006,2]
[408432166,1773606643987,-500.0,0.00016006,2]
[408432167,1773606643997,-500.0,0.00016006,2]
[408432168,1773606644007,-500.0,0.00016006,2]
[408432169,1773606644016,-500.0,0.00016006,2]
[408432170,1773606644025,-500.0,0.00016006,2]
[408432171,1773606644035,-500.0,0.00016006,2]
[408432172,1773606644044,-500.0,0.00016006,2]
[408432173,1773606644054,-500.0,0.00016006,2]
[408432174,1773606644063,-500.0,0.00016006,2]
[408432175,1773606644072,-500.0,0.00016006,2]
[408432176,1773606644082,-500.0,0.00016006,2]
[408432177,1773606644092,-18723.11,0.00016006,2]
[408432178,1773606644101,-500.0,0.00016006,2]
[408432179,1773606644111,-400.72571272,0.00016006,2]
[408432180,1773606644120,-500.0,0.00016006,2]
[408432181,1773606644129,-18723.11,0.00016006,2]
[408432182,1773606644139,-500.0,0.00016006,2]
[408432183,1773606644148,-18723.11,0.00016006,2]
[408432184,1773606644158,-500.0,0.00016006,2]
[408432185,1773606644167,-18723.11,0.00016006,2]
[408432186,1773606644176,-500.0,0.00016006,2]
[408432187,1773606644185,-18723.11,0.00016006,2]
[408432188,1773606644195,-646.6247186,0.00016006,2]
[408432189,1773606644205,-18723.11,0.00016006,2]
[408432190,1773606644215,-18723.11,0.00016006,2]
[408432191,1773606644224,-18723.11,0.00016006,2]
[408432192,1773606644234,-18723.11,0.00016006,2]
[408432193,1773606644243,-18723.11,0.00016006,2]
[408432194,1773606644252,-18723.11,0.00016006,2]
[408432195,1773606644261,-18723.11,0.00016006,2]
[408432196,1773606644271,-18723.11,0.00016006,2]
[408432197,1773606644280,-18723.11,0.00016006,2]
[408432198,1773606644289,-17957.32325345,0.00016006,2]
[408432199,1773606644307,-765.78674655,0.00016006,2]
[408432200,1773606644316,-18723.11,0.00016006,2]
[408432201,1773606644329,-18723.11,0.00016006,2]
[408432202,1773606644339,-18723.27751682,0.00016006,2]
[408432203,1773606644349,-5253.62513559,0.0001603,30]
[408432204,1773606644358,-299.14870905,0.00016039,14]
[408432205,1773606644368,-1289.36618414,0.00016201,2]
[408432206,1773606644377,-1223.47558137,0.00016227,30]
[408432207,1773606644387,-5253.62513559,0.00016262,30]
[408432208,1773606644398,-160.0,0.00016265,7]
[408432209,1773606644408,-160.67331113,0.00016265,5]
[408432210,1773606644417,-1330.02595666,0.0001627,30]
[408432211,1773606644426,-318.41116746,0.00016311,30]
[408432212,1773606644435,-1817.1,0.00016438,2]
[408432213,1773606644445,-5253.62513559,0.00016494,30]
[408432214,1773606644454,-1000.0,0.00016497,2]
[408432215,1773606644463,-1000.0,0.00016497,2]
[408432216,1773606644472,-224.15289917,0.00016535,30]
[408432217,1773606644482,-259.3302111,0.00016535,30]
[408432218,1773606644491,-2487.15318209,0.00016536,2]
[408432219,1773606644501,-1223.47558137,0.00016593,30]
[408432220,1773606644511,-1330.02595666,0.00016662,30]
[408432221,1773606644520,-163.93749327,0.00016712,2]
[408432222,1773606644529,-1817.1,0.00016712,2]
[408432223,1773606644539,-5253.62513559,0.00016726,30]
[408432224,1773606644547,-200.0,0.0001673,2]
[408432225,1773606644557,-31537.61310067,0.00016731,2]
[408432226,1773606644569,-2774.43317455,0.00016731,2]
[408432227,1773606645078,-318.84759742,0.00010519,2]
[408432228,1773606645089,-232.88940258,0.00010519,2]
[408432229,1773606645098,-128.11059742,0.00015,2]
[408432230,1773606645117,-274.6353357,0.0001559,2]
[408432231,1773606645129,-701.62763894,0.0001559,2]
[408432232,1773606645141,-112.72373908,0.0001559,2]
[408432233,1773606645152,-1270.07626092,0.00015878,2]
[408432234,1773606645177,-771.14628782,0.00015878,2]
[408432235,1773606645189,-493.6422938,0.00015878,2]
[408432236,1773606645202,-335.13515746,0.00015878,2]
[408432237,1773606645212,-625.0,0.00015906,2]
[408432238,1773606645222,-936.89137052,0.00015906,2]
[408432239,1773606645234,-10915.10862948,0.00015906,2]
[408432240,1773606645243,-17773.56019551,0.00016731,2]
[408432241,1773606645254,-3795.1,0.00016731,2]
[408432242,1773606645265,-1283.82286199,0.00016731,2]